bitfinex/quotes_ETHUSD_20250505
["timestamp","ask_amount","ask_price","bid_price","bid_amount"]
[1746438160017,5.45687309,1832.6,1832.2,6.8525846]
[1746438160437,3.0,1832.5,1832.2,6.8525846]
[1746438160758,3.0,1832.5,1832.4,1.3402]
[1746438160921,7.29270516,1832.8,1832.4,1.39476558]
[1746438161120,7.29270516,1832.8,1832.5,4.54]
[1746438161344,7.29270516,1832.8,1832.6,0.05456098]
[1746438161345,8.4564304,1832.7,1832.6,0.05456098]
[1746438161549,8.4564304,1832.7,1832.5,4.59456247]
[1746438161746,8.4564304,1832.7,1832.6,1.00945625]
[1746438161747,3.0,1832.7,1832.6,1.00945625]
[1746438162478,3.40899763,1832.7,1832.6,1.00945625]
[1746438163074,3.40899763,1832.7,1832.6,1.83695625]
[1746438163767,3.0,1832.7,1832.6,1.83695625]
[1746438165892,3.0,1832.7,1832.6,1.89151562]
[1746438166094,3.0,1832.7,1832.6,1.83695625]
[1746438167255,3.41790203,1832.7,1832.6,1.83695625]
[1746438168880,3.0,1832.7,1832.6,1.83695625]
[1746438169389,3.7625,1832.7,1832.6,0.55]
[1746438169598,9.22041944,1832.2,1832.1,1e-08]
[1746438169777,5.45921234,1831.8,1831.6,4.527]
[1746438169963,3.0,1831.8,1831.6,4.527]
[1746438170580,5.45862725,1832.0,1831.7,0.55]
[1746438170879,3.0,1831.9,1831.7,0.55]
[1746438171081,3.0,1831.9,1831.6,5.3245]
[1746438171458,3.0,1831.9,1831.7,0.55]
[1746438171658,3.42018966,1831.9,1831.7,1.13745]
[1746438171981,3.42018966,1831.9,1831.8,0.6045832]
[1746438172779,8.87905568,1831.9,1831.8,0.6045832]
[1746438175452,8.87905568,1831.9,1831.8,0.55]
[1746438184371,3.42018966,1831.9,1831.8,0.60458426]
[1746438184576,3.42018966,1831.9,1831.8,1.21145843]
[1746438185418,8.87900291,1831.9,1831.8,1.21145843]
[1746438185583,8.87900291,1831.9,1831.8,0.55]
[1746438193629,9.18629695,1831.9,1831.8,0.55]
[1746438193992,9.18629866,1831.9,1831.8,0.55]
[1746438194923,9.18629866,1831.9,1831.8,6.56]
[1746438195220,9.18629686,1831.9,1831.8,6.56]
[1746438196020,9.18630248,1831.9,1831.8,6.56]
[1746438196322,9.18630248,1831.9,1831.8,11.139]
[1746438196540,13.48952039,1831.9,1831.8,10.589]
[1746438196752,13.48952039,1831.9,1831.8,6.01]
[1746438197058,13.48952039,1831.9,1831.8,10.589]
[1746438197541,13.48955852,1831.9,1831.8,4.579]
[1746438198049,13.49705852,1831.9,1831.8,4.579]
[1746438198209,13.49704903,1831.9,1831.8,4.579]
[1746438198915,13.18973695,1831.9,1831.8,4.579]
[1746438209145,8.87900291,1831.9,1831.8,4.579]
[1746438210928,0.42018966,1831.9,1831.8,5.18358654]
[1746438211124,3.0,1831.9,1831.8,5.18358654]
[1746438211329,3.0,1831.9,1831.8,5.129]
[1746438211548,3.0,1831.9,1831.8,5.71967]
[1746438212452,7.2951105,1832.0,1831.8,5.71967]
[1746438212677,7.2951105,1832.0,1831.9,0.05458254]
[1746438212974,10.2951105,1832.0,1831.9,0.05458254]
[1746438214370,3.0,1831.9,1831.8,11.72967]
[1746438215738,7.29451332,1832.2,1831.9,1.3]
[1746438215975,7.29451332,1832.2,1832.0,0.05457729]
[1746438216172,7.29451332,1832.2,1832.0,0.60457729]
[1746438216588,3.0,1832.1,1832.0,0.60457729]
[1746438219183,3.41085996,1832.1,1832.0,0.60457729]
[1746438224073,8.8690773,1832.1,1832.0,0.55]
[1746438226297,9.26241528,1832.0,1831.9,6.01]
[1746438226462,11.09881625,1832.0,1831.9,6.01]
[1746438227396,5.45881325,1831.9,1831.8,4.579]
[1746438244451,8.45881325,1831.9,1831.8,4.579]
[1746438255165,10.29521422,1831.9,1831.8,4.579]
[1746438255452,12.13461727,1831.9,1831.8,4.579]
[1746438256940,10.2982163,1831.9,1831.8,4.579]
[1746438257366,12.13461727,1831.9,1831.8,4.579]
[1746438257866,10.2982163,1831.9,1831.8,4.579]
[1746438264805,0.8169,1831.6,1830.7,9.49736872]
[1746438264961,9.27809818,1831.1,1831.0,4.53]
[1746438265289,9.55121156,1831.1,1831.0,4.53]
[1746438265497,3.0,1831.1,1831.0,4.53]
[1746438265682,3.0,1831.2,1831.1,0.55]
[1746438265980,3.0,1831.2,1831.1,0.60460536]
[1746438266678,3.41357787,1831.2,1831.1,5.13460536]
[1746438267082,3.41357787,1831.2,1831.1,5.08]
[1746438267376,3.41357787,1831.2,1831.1,5.75295651]
[1746438269081,0.41357787,1831.2,1831.1,5.75295651]
[1746438269285,1.83640097,1831.3,1831.1,5.75295651]
[1746438269487,1.83640097,1831.3,1831.2,1.35680192]
[1746438270282,1.83640097,1831.3,1831.1,10.66415369]
[1746438270283,3.0,1831.2,1831.1,5.20295651]
[1746438270458,3.0,1831.2,1831.1,5.75295651]
[1746438270982,3.40614562,1831.2,1831.1,5.75295651]
[1746438271478,0.40614562,1831.2,1831.1,5.75295651]
[1746438271683,3.0,1831.2,1831.1,5.75295651]
[1746438274386,3.40506256,1831.2,1831.1,5.75295651]
[1746438278698,8.86596251,1831.2,1831.1,5.75295651]
[1746438279851,8.86596251,1831.2,1831.1,4.53]
[1746438280059,8.46119818,1831.1,1831.0,6.01]
[1746438280302,10.29759915,1831.1,1831.0,10.541]
[1746438281198,3.0,1831.1,1831.0,11.344]
[1746438281495,3.0,1831.1,1831.0,18.48989645]
[1746438281671,0.40506256,1831.2,1831.0,18.48989645]
[1746438281876,4.83640097,1831.3,1831.0,18.48989645]
[1746438282303,10.29703027,1831.3,1831.0,18.48989645]
[1746438282601,10.29703027,1831.3,1831.0,13.0284]
[1746438282760,10.29703027,1831.3,1831.2,0.55]
[1746438284908,5.46089995,1831.2,1831.0,11.344]
[1746438285200,8.87753012,1831.2,1831.1,0.55]
[1746438294675,8.87753012,1831.2,1831.0,10.541]
[1746438294676,8.46119818,1831.1,1831.0,4.531]
[1746438294877,10.29759915,1831.1,1831.0,4.531]
[1746438295888,8.46179474,1830.9,1830.8,0.55]
[1746438296090,10.29819571,1830.9,1830.8,5.143]
[1746438300226,10.29819571,1830.9,1830.8,4.593]
[1746438305936,3.0,1830.9,1830.8,5.9756]
[1746438306099,7.71409768,1831.2,1830.8,11.43769307]
[1746438306436,8.87769671,1831.2,1831.1,0.55]
[1746438306617,10.71409768,1831.2,1831.1,0.55]
[1746438307806,11.47789768,1831.2,1831.1,0.55]
[1746438308014,8.46149645,1831.0,1830.9,0.55]
[1746438308329,10.29789742,1831.0,1830.9,0.55]
[1746438311668,10.29789742,1831.0,1830.9,1.3328]
[1746438311669,8.46149645,1831.0,1830.9,1.3328]
[1746438315244,8.46149645,1831.0,1830.9,7.3428]
[1746438316443,3.0,1831.0,1830.9,7.3428]
[1746438317346,3.0,1831.0,1830.9,8.53638]
[1746438320951,3.0,1831.1,1830.9,13.99807825]
[1746438321718,3.0,1831.1,1830.9,8.53638]
[1746438323147,8.4613749,1831.1,1830.9,8.53638]
[1746438324655,3.0,1831.1,1830.9,13.99817081]
[1746438324818,0.41663017,1831.2,1831.0,7.465922]
[1746438325024,3.0,1831.3,1831.0,7.465922]
[1746438325349,8.46068881,1831.3,1831.0,7.465922]
[1746438325550,8.46068881,1831.3,1831.0,7.41131353]
[1746438325756,8.46068881,1831.3,1831.2,0.55]
[1746438325945,8.46068881,1831.3,1831.2,5.126]
[1746438329058,8.8803295,1831.3,1831.2,5.126]
[1746438330930,9.6802295,1831.3,1831.2,4.576]
[1746438331124,11.46870464,1831.3,1831.2,4.576]
[1746438331340,13.30510561,1831.3,1831.2,4.576]
[1746438331866,9.21309995,1831.2,1831.1,10.586]
[1746438332040,11.04950092,1831.2,1831.1,10.586]
[1746438332959,11.04950092,1831.2,1831.1,4.576]
[1746438333158,13.19574312,1831.2,1831.1,4.576]
[1746438333764,11.35934215,1831.2,1831.1,4.576]
[1746438337662,10.60714215,1831.2,1831.1,4.576]
[1746438338168,11.42334972,1831.2,1831.1,4.576]
[1746438341563,9.27710752,1831.2,1831.1,4.576]
[1746438341857,9.27710752,1831.2,1831.1,5.126]
[1746438346702,9.27710752,1831.2,1831.1,5.3781432]
[1746438347987,9.27710752,1831.2,1831.1,4.8281432]
[1746438348759,10.04220752,1831.2,1831.1,4.8281432]
[1746438353292,11.81810132,1831.2,1831.1,4.8281432]
[1746438353596,13.65450229,1831.2,1831.1,4.8051432]
[1746438354365,11.81810132,1831.2,1831.1,4.8051432]
[1746438363082,13.65450229,1831.2,1831.1,4.8051432]
[1746438363283,11.81810132,1831.2,1831.1,4.8051432]
[1746438366683,13.65450229,1831.2,1831.1,4.8051432]
[1746438367701,11.81810132,1831.2,1831.1,4.8051432]
[1746438368203,13.65450229,1831.2,1831.1,4.8051432]
[1746438370514,14.61361776,1831.2,1831.1,4.8051432]
[1746438376921,8.46268982,1830.6,1830.5,6.01]
[1746438377122,10.80922237,1830.6,1830.5,10.564]
[1746438377422,11.11529836,1830.6,1830.5,10.564]
[1746438379622,11.52292892,1830.6,1830.5,10.564]
[1746438384417,6.0602391,1830.6,1830.5,10.564]
[1746438384619,6.0602391,1830.6,1830.5,10.77760261]
[1746438385119,5.75416311,1830.6,1830.5,10.77760261]
[1746438385428,5.75416311,1830.6,1830.5,11.55860261]
[1746438385828,11.21717045,1830.6,1830.5,11.55860261]
[1746438389535,5.75448063,1830.6,1830.5,11.55860261]
[1746438390360,3.5104491,1830.6,1830.5,17.57159086]
[1746438390511,0.5104491,1830.6,1830.5,17.57159086]
[1746438390839,3.0,1831.0,1830.7,5.462332]
[1746438391039,3.4089468,1831.0,1830.9,0.7737]
[1746438391244,8.87044325,1831.0,1830.9,5.3127]
[1746438391441,9.38103796,1831.0,1830.9,4.75249435]
[1746438391645,11.8302197,1831.0,1830.9,4.75249435]
[1746438391817,12.13655386,1831.0,1830.9,4.75249435]
[1746438399952,11.35525386,1831.0,1830.9,4.75249435]
[1746438400754,12.11235386,1831.0,1830.9,4.75249435]
[1746438402151,12.11235386,1831.0,1830.9,4.70249435]
[1746438412584,11.35525386,1831.0,1830.9,4.70249435]
[1746438417087,9.68737212,1831.0,1830.9,4.70249435]
[1746438417783,9.68737212,1831.0,1830.9,5.48399435]
[1746438419212,1.22587567,1831.0,1830.9,6.03399435]
[1746438419983,4.22587567,1831.0,1830.9,6.08860751]
[1746438420182,0.81692887,1831.0,1830.9,6.03399435]
[1746438420387,0.81692887,1831.0,1830.9,7.18360131]
[1746438421204,0.81735328,1831.0,1830.9,7.18360131]
[1746438422072,0.81735328,1831.0,1830.9,7.13360131]
[1746438423789,0.81735328,1831.0,1830.9,13.14360131]
[1746438425865,0.51059471,1831.0,1830.9,13.14360131]
[1746438431077,0.51059471,1831.0,1830.9,18.60539605]
[1746438431581,5.24238001,1831.3,1831.2,0.55]
[1746438431873,5.34674771,1831.3,1831.2,6.56]
[1746438432090,5.34674771,1831.3,1831.2,6.77051766]
[1746438432381,5.34674771,1831.3,1831.2,7.52627943]
[1746438435789,5.75705372,1831.3,1831.2,7.52627943]
[1746438436879,0.51034674,1831.3,1831.2,7.52627943]
[1746438437068,0.51034674,1831.3,1831.2,13.80137938]
[1746438437452,7.29569418,1831.8,1831.5,1.3309]
[1746438437676,3.51010775,1831.7,1831.6,5.29665515]
[1746438437870,3.8161731,1831.7,1831.6,5.29665515]
[1746438438388,4.22171718,1831.7,1831.6,5.29665515]
[1746438439588,3.8161731,1831.7,1831.6,11.30665515]
[1746438439794,0.51010775,1831.7,1831.6,18.2582398]
[1746438440091,0.51010775,1831.7,1831.6,12.79853245]
[1746438440694,4.83640097,1831.8,1831.6,12.79853245]
[1746438440695,10.29568075,1831.8,1831.6,12.79853245]
[1746438441290,10.70286559,1831.8,1831.6,12.24853245]
[1746438441501,0.50971089,1831.7,1831.6,12.08105515]
[1746438443692,10.70286559,1831.8,1831.7,0.55]
[1746438443904,10.70286559,1831.8,1831.7,0.75719571]
[1746438444195,11.21246133,1831.8,1831.7,0.75719571]
[1746438445201,12.00676133,1831.8,1831.7,0.20719571]
[1746438445388,13.93697701,1831.8,1831.7,0.20719571]
[1746438445695,8.45940929,1831.7,1831.6,4.538]
[1746438445874,8.96900503,1831.7,1831.6,4.538]
[1746438446896,9.27476268,1831.7,1831.6,4.538]
[1746438448201,8.46030359,1831.4,1831.3,6.01]
[1746438448399,10.8063003,1831.4,1831.3,10.546]
[1746438448969,11.93945795,1831.4,1831.3,10.546]
[1746438450113,11.93945795,1831.4,1831.3,4.536]
[1746438451698,11.93945795,1831.4,1831.3,4.74230951]
[1746438451880,13.67941745,1831.4,1831.3,4.74230951]
[1746438453376,11.11205795,1831.4,1831.3,4.74230951]
[1746438455083,11.92105795,1831.4,1831.3,4.74230951]
[1746438457880,11.11205795,1831.4,1831.3,4.74230951]
[1746438466531,2.65175436,1831.4,1831.3,4.74230951]
[1746438466681,8.11205795,1831.4,1831.3,4.74230951]
[1746438467025,0.81535339,1831.4,1831.3,11.86354096]
[1746438467201,0.81535339,1831.4,1831.3,12.61374096]
[1746438467396,0.50959574,1831.4,1831.3,12.61374096]
[1746438467599,3.50959574,1831.4,1831.3,12.61374096]
[1746438468630,0.50959574,1831.4,1831.3,12.61374096]
[1746438469131,3.0,1831.5,1831.3,12.61374096]
[1746438469300,3.0,1831.5,1831.4,1.2613741]
[1746438469500,0.51054167,1831.5,1831.4,1.46809484]
[1746438469716,0.51054167,1831.5,1831.4,2.77969484]
[1746438470595,0.51054167,1831.5,1831.4,8.78969484]
[1746438472803,5.97054713,1831.5,1831.4,8.78969484]
[1746438473715,6.27698186,1831.5,1831.4,8.78969484]
[1746438474538,6.27698186,1831.5,1831.4,8.02809484]
[1746438474714,6.27698186,1831.5,1831.4,6.76672074]
[1746438475605,0.8169764,1831.5,1831.4,6.76672074]
[1746438476044,6.27698186,1831.5,1831.4,6.76672074]
[1746438476438,5.97054713,1831.5,1831.4,6.76672074]
[1746438476857,0.51054167,1831.5,1831.4,6.76672074]
[1746438477340,5.97054713,1831.5,1831.4,6.76672074]
[1746438477635,0.51054167,1831.5,1831.4,6.76672074]
[1746438478524,5.97054713,1831.5,1831.4,6.76672074]
[1746438479243,0.51054167,1831.5,1831.4,6.76672074]
[1746438479633,5.97054713,1831.5,1831.4,6.76672074]
[1746438480242,0.51054167,1831.5,1831.4,6.76672074]
[1746438480449,5.97054713,1831.5,1831.4,6.76672074]
[1746438480766,0.51054167,1831.5,1831.4,6.76672074]
[1746438481242,5.97054713,1831.5,1831.4,6.76672074]
[1746438482149,6.27710652,1831.5,1831.4,6.76672074]
[1746438483247,9.27710652,1831.5,1831.4,6.76672074]
[1746438483636,11.71854641,1831.5,1831.4,6.21672074]
[1746438483828,11.71854641,1831.5,1831.4,10.75172074]
[1746438488336,11.71854641,1831.5,1831.4,4.74172074]
[1746438489739,9.27710652,1831.5,1831.4,4.74172074]
[1746438490460,9.27710652,1831.5,1831.4,5.29172074]
[1746438490666,0.81710106,1831.5,1831.4,5.29172074]
[1746438490858,3.81710106,1831.5,1831.4,5.29172074]
[1746438491430,3.51054167,1831.5,1831.4,5.29172074]
[1746438491767,3.51054167,1831.5,1831.4,6.99121023]
[1746438493776,9.27709838,1831.5,1831.4,5.29172074]
[1746438494189,9.27709838,1831.5,1831.4,11.30172074]
[1746438494689,3.81709292,1831.5,1831.4,11.30172074]
[1746438495278,9.27709838,1831.5,1831.4,11.30172074]
[1746438495580,3.81709292,1831.5,1831.4,11.30172074]
[1746438495780,3.81709292,1831.5,1831.4,12.51011281]
[1746438497662,3.51054167,1831.5,1831.4,12.51011281]
[1746438498155,8.97054713,1831.5,1831.4,12.51011281]
[1746438498986,9.27720527,1831.5,1831.4,12.51011281]
[1746438499350,9.27720527,1831.5,1831.4,11.30172074]
[1746438499765,9.27720527,1831.5,1831.4,10.75172074]
[1746438500378,9.27720527,1831.5,1831.4,11.30172074]
[1746438502781,3.81719981,1831.5,1831.4,11.30172074]
[1746438505192,9.27720527,1831.5,1831.4,11.30172074]
[1746438508277,3.81719981,1831.5,1831.4,12.43189281]
[1746438508611,3.51054167,1831.5,1831.4,13.24059281]
[1746438515998,3.51054167,1831.5,1831.4,18.7008964]
[1746438516198,0.51054167,1831.5,1831.4,18.7008964]
[1746438518093,0.51054167,1831.5,1831.4,13.24059281]
[1746438518478,0.51054167,1831.5,1831.4,18.7008964]
[1746438519599,0.51054167,1831.5,1831.4,13.24059281]
[1746438520179,0.51054167,1831.5,1831.4,18.7008964]
[1746438521499,0.51054167,1831.5,1831.4,13.24059281]
[1746438521922,0.51054167,1831.5,1831.4,18.7008964]
[1746438522102,0.51054167,1831.5,1831.4,13.24059281]
[1746438522299,0.51054167,1831.5,1831.4,18.7008964]
[1746438526715,0.51054167,1831.5,1831.4,13.24059281]
[1746438527384,6.80104713,1831.5,1831.4,11.30172074]
[1746438527721,6.80104713,1831.5,1831.4,10.75172074]
[1746438527900,7.10792184,1831.5,1831.4,11.30172074]
[1746438528518,0.81741638,1831.5,1831.4,11.30172074]
[1746438530576,0.81741638,1831.5,1831.4,16.76202433]
[1746438531218,0.51054167,1831.5,1831.4,16.76202433]
[1746438532445,0.51054167,1831.5,1831.4,11.30172074]
[1746438536517,0.81755762,1831.5,1831.4,11.30172074]
[1746438537107,0.51054167,1831.5,1831.4,11.30172074]
[1746438537629,0.51054167,1831.5,1831.4,16.76202433]
[1746438541323,0.51054167,1831.5,1831.4,20.45016297]
[1746438541532,0.51054167,1831.5,1831.4,23.39215325]
[1746438543721,0.51054167,1831.5,1831.4,17.93184966]
[1746438544638,0.51054167,1831.5,1831.4,23.39215325]
[1746438555555,0.51054167,1831.5,1831.4,17.93184966]
[1746438556950,0.51054167,1831.5,1831.4,23.39215325]
[1746438560860,0.81773801,1831.5,1831.4,23.39215325]
[1746438561553,0.51054167,1831.5,1831.4,23.39215325]
[1746438562863,0.81768654,1831.5,1831.4,23.39215325]
[1746438563949,0.81768654,1831.5,1831.4,17.93184966]
[1746438564551,0.51054167,1831.5,1831.4,23.39215325]
[1746438565054,0.51054167,1831.5,1831.4,17.93184966]
[1746438565870,0.81772888,1831.5,1831.4,17.93184966]
[1746438571621,0.81772888,1831.5,1831.4,23.39215325]
[1746438574558,0.81772888,1831.5,1831.4,17.93184966]
[1746438582188,10.05613434,1831.5,1831.4,17.38184966]
[1746438582464,11.73922343,1831.5,1831.4,17.93184966]
[1746438582842,11.73922343,1831.5,1831.4,17.38184966]
[1746438583369,13.05426601,1831.5,1831.4,17.93184966]
[1746438585581,13.05426601,1831.5,1831.4,11.92184966]
[1746438585780,11.76212343,1831.5,1831.4,11.92184966]
[1746438585961,11.39407692,1831.5,1831.4,11.92184966]
[1746438586156,11.39407692,1831.5,1831.4,5.29172074]
[1746438588183,10.07903434,1831.5,1831.4,5.29172074]
[1746438588340,11.39407692,1831.5,1831.4,5.29172074]
[1746438588543,9.27773434,1831.5,1831.4,5.29172074]
[1746438588742,3.81772888,1831.5,1831.4,5.29172074]
[1746438588973,10.59277692,1831.5,1831.4,5.29172074]
[1746438589576,5.13277146,1831.5,1831.4,5.29172074]
[1746438589781,0.81772888,1831.5,1831.4,5.90292281]
[1746438590171,0.51054167,1831.5,1831.4,5.90292281]
[1746438593890,4.82558425,1831.5,1831.4,5.90292281]
[1746438594060,4.82558425,1831.5,1831.4,5.29172074]
[1746438594284,5.13269845,1831.5,1831.4,5.29172074]
[1746438594559,11.35310391,1831.5,1831.4,5.29172074]
[1746438594947,12.66814649,1831.5,1831.4,4.74172074]
[1746438595782,11.87990183,1831.5,1831.4,4.74172074]
[1746438595949,13.61387179,1831.5,1831.4,4.74172074]
[1746438601412,13.61387179,1831.5,1831.4,4.74172074]
[1746438608606,13.61387179,1831.5,1831.4,5.29172074]
[1746438612038,13.61460042,1831.5,1831.4,5.29172074]
[1746438615421,11.12023046,1831.5,1831.4,5.29172074]
[1746438621122,8.12023046,1831.5,1831.4,5.29172074]
[1746438621620,11.12023046,1831.5,1831.4,5.29172074]
[1746438621822,5.13334431,1831.5,1831.4,5.29172074]
[1746438622910,5.13334431,1831.5,1831.4,6.09892074]
[1746438623212,5.13334431,1831.5,1831.4,6.70881281]
[1746438623725,5.6595136,1831.5,1831.4,6.70881281]
[1746438625029,3.8183845,1831.5,1831.4,12.1691164]
[1746438625239,0.5112703,1831.5,1831.4,12.1691164]
[1746438625739,5.24831394,1831.8,1831.4,12.1691164]
[1746438625948,5.24831394,1831.8,1831.7,0.55]
[1746438626101,5.55530829,1831.8,1831.7,0.74978246]
[1746438626298,0.30699435,1831.8,1831.7,6.20919175]
[1746438626491,0.81847688,1831.8,1831.7,7.08228074]
[1746438626705,0.81847688,1831.8,1831.7,7.87832306]
[1746438626909,0.51148253,1831.8,1831.7,7.82373407]
[1746438627126,5.45796644,1832.2,1831.9,0.55]
[1746438627292,5.45796644,1832.2,1832.1,0.55]
[1746438627496,10.81010309,1832.2,1832.1,0.74873924]
[1746438628310,2.76317989,1832.2,1832.1,0.74873924]
[1746438628519,2.25217234,1832.2,1832.1,2.10451316]
[1746438628713,10.71009178,1832.2,1832.1,2.10451316]
[1746438628910,10.71009178,1832.2,1832.1,1.27661316]
[1746438629643,10.29904854,1832.2,1832.1,1.27661316]
[1746438629943,1.8411291,1832.2,1832.1,1.27661316]
[1746438633140,2.25332836,1832.2,1832.1,1.27661316]
[1746438633936,7.7112478,1832.2,1832.1,1.27661316]
[1746438634551,2.25332836,1832.2,1832.1,1.27661316]
[1746438637076,10.29846408,1832.4,1832.1,6.7348305]
[1746438637257,10.29846408,1832.4,1832.2,0.67348305]
[1746438637431,10.70852993,1832.4,1832.2,0.67348305]
[1746438637756,10.70852993,1832.4,1832.3,0.19313353]
[1746438640358,10.70852993,1832.4,1832.1,1.07787392]
[1746438640556,10.70852993,1832.4,1832.2,0.19324815]
[1746438640749,10.70852993,1832.4,1832.1,1.07787392]
[1746438640960,10.70852993,1832.4,1832.2,0.19324815]
[1746438641124,10.70852993,1832.4,1832.1,1.07787392]
[1746438641326,5.25119495,1832.4,1832.2,0.19324815]
[1746438641539,5.25119495,1832.4,1832.2,0.67293347]
[1746438641739,5.25119495,1832.4,1832.3,0.19313353]
[1746438642262,10.70852226,1832.4,1832.3,0.19313353]
[1746438643675,5.25119495,1832.4,1832.3,0.19313353]
[1746438644045,10.70851867,1832.4,1832.3,0.74313353]
[1746438645861,11.48911867,1832.4,1832.3,0.74313353]
[1746438646049,13.69325824,1832.4,1832.3,0.74313353]
[1746438646251,13.99904585,1832.4,1832.3,0.74313353]
[1746438648850,13.99904585,1832.4,1832.3,5.27013353]
[1746438661594,13.99904585,1832.4,1832.3,0.19313353]
[1746438661595,14.80701135,1832.4,1832.3,0.19313353]
[1746438661791,9.27352156,1832.3,1832.2,4.524]
[1746438661998,11.06001031,1832.3,1832.2,4.524]
[1746438662703,11.56952115,1832.3,1832.2,4.524]
[1746438672830,11.06001031,1832.3,1832.2,4.524]
[1746438673031,11.57144864,1832.3,1832.2,4.524]
[1746438677036,11.57144864,1832.3,1832.2,4.70407534]
[1746438677235,11.57144864,1832.3,1832.2,4.524]
[1746438677441,10.75554864,1832.3,1832.2,4.524]
[1746438677736,10.75554864,1832.3,1832.2,4.70407534]
[1746438677933,10.75554864,1832.3,1832.2,0.18007534]
[1746438678301,8.45851528,1832.0,1831.9,5.075]
[1746438678503,10.29964438,1832.0,1831.9,5.075]
[1746438678736,10.81108271,1832.0,1831.9,5.25541929]
[1746438679240,11.11687032,1832.0,1831.9,5.25541929]
[1746438687324,12.7743919,1832.0,1831.9,5.25541929]
[1746438690262,11.11687032,1832.0,1831.9,5.25541929]
[1746438693751,12.68525712,1832.0,1831.9,1e-08]
[1746438693925,12.68525712,1832.0,1831.9,0.15098237]
[1746438694254,12.68525712,1832.0,1831.9,0.13840051]
[1746438694431,14.49961738,1832.0,1831.9,0.12686713]
[1746438694636,14.49961738,1832.0,1831.9,1e-08]
[1746438695252,10.5531212,1831.9,1831.8,4.523]
[1746438695549,11.46681718,1831.9,1831.8,4.523]
[1746438695751,13.83404311,1831.9,1831.8,4.523]
[1746438695910,15.97531374,1831.9,1831.8,4.523]
[1746438696114,16.28110135,1831.9,1831.8,4.523]
[1746438700034,3.0,1831.5,1831.4,1.3675]
[1746438700348,8.97144379,1831.5,1831.4,5.8905]
[1746438700655,9.2772314,1831.5,1831.4,5.8905]
[1746438701048,11.11844834,1831.5,1831.4,0.55]
[1746438701254,11.11844834,1831.5,1831.4,5.073]
[1746438704755,11.11844834,1831.5,1831.4,4.523]
[1746438704960,13.32224791,1831.5,1831.4,4.523]
[1746438705155,13.59453543,1831.5,1831.4,4.523]
[1746438705460,14.42463543,1831.5,1831.4,4.67639438]
[1746438707882,14.15234791,1831.5,1831.4,4.67639438]
[1746438708023,11.94854834,1831.5,1831.4,4.67639438]
[1746438708741,11.11844834,1831.5,1831.4,4.67639438]
[1746438713437,11.11844834,1831.5,1831.4,5.47839438]
[1746438714468,11.11844834,1831.5,1831.4,6.02839438]
[1746438715776,11.11844834,1831.5,1831.4,5.22639438]
[1746438718585,12.77626391,1831.5,1831.4,5.22639438]
[1746438719284,11.11844834,1831.5,1831.4,5.22639438]
[1746438721384,11.11844834,1831.5,1831.4,4.67639438]
[1746438727994,11.11844834,1831.5,1831.4,0.15339438]
[1746438727995,10.60701001,1831.5,1831.4,0.15339438]
[1746438728195,11.11797233,1831.5,1831.4,0.15339438]
[1746438728382,10.60701001,1831.5,1831.4,0.15339438]
[1746438729709,12.29420175,1831.5,1831.4,0.15339438]
[1746438732300,9.27060359,1831.4,1831.3,4.36860563]
[1746438732503,5.46179474,1830.9,1830.8,18.8572]
[1746438732688,10.30301168,1830.9,1830.8,23.3792]
[1746438733072,10.30301168,1830.9,1830.8,23.9292]
[1746438733273,10.60879929,1830.9,1830.8,23.9292]
[1746438735398,10.60879929,1830.9,1830.8,22.582]
[1746438736169,11.01100217,1830.9,1830.8,22.582]
[1746438737272,11.01100217,1830.9,1830.8,4.522]
[1746438737395,12.65826529,1830.9,1830.8,4.522]
[1746438738122,11.01100217,1830.9,1830.8,4.522]
[1746438741864,11.01100217,1830.9,1830.8,5.8319]
[1746438742015,9.16978523,1830.9,1830.8,5.8319]
[1746438742347,11.01100217,1830.9,1830.8,5.8319]
[1746438742744,0.30578761,1830.9,1830.8,11.29399307]
[1746438742916,0.30578761,1830.9,1830.8,12.42339238]
[1746438743127,0.30578761,1831.1,1831.0,1.3099]
[1746438743712,3.40089626,1831.2,1831.1,0.7599]
[1746438743945,0.40089626,1831.2,1831.1,0.55]
[1746438744123,7.30170208,1831.4,1831.1,1.3099]
[1746438744329,10.30170208,1831.4,1831.3,1.3099]
[1746438744647,7.60742847,1831.4,1831.3,1.3099]
[1746438744946,10.60742847,1831.4,1831.3,1.3099]
[1746438747744,11.01694792,1831.4,1831.3,1.3099]
[1746438755566,11.01694792,1831.4,1831.3,0.55]
[1746438758338,11.01690226,1831.4,1831.3,0.55]
[1746438758682,8.46060175,1831.3,1831.2,4.523]
[1746438759173,8.76628248,1831.3,1831.2,4.523]
[1746438765883,5.76628248,1831.3,1831.2,4.523]
[1746438766246,8.76628248,1831.3,1831.2,4.523]
[1746438771585,8.76628248,1831.3,1831.2,5.073]
[1746438772665,10.60749942,1831.3,1831.2,5.073]
[1746438783507,12.25524982,1831.3,1831.2,5.073]
[1746438786297,10.60749942,1831.3,1831.2,5.073]
[1746438788109,10.60749942,1831.3,1831.2,0.55]
[1746438789113,8.46089995,1831.2,1831.1,5.069]
[1746438789717,8.76658068,1831.2,1831.1,5.069]
[1746438795603,8.76658068,1831.2,1831.1,4.519]
[1746438795808,10.37342062,1831.2,1831.1,4.519]
[1746438801538,10.37342062,1831.2,1831.1,4.3552078]
[1746438802647,8.76658068,1831.2,1831.1,4.3552078]
[1746438804015,8.76658068,1831.2,1831.1,4.9052078]
[1746438804913,3.30568073,1831.2,1831.1,4.9052078]
[1746438805109,8.76658068,1831.2,1831.1,4.9052078]
[1746438805316,10.60779762,1831.2,1831.1,4.9052078]
[1746438811143,10.60779762,1831.2,1831.1,5.6789078]
[1746438811354,5.14689767,1831.2,1831.1,5.6789078]
[1746438811531,10.60779762,1831.2,1831.1,5.1289078]
[1746438811728,3.30568073,1831.2,1831.1,6.19725952]
[1746438813773,0.30568073,1831.2,1831.1,11.71306689]
[1746438813953,0.30568073,1831.2,1831.1,11.6584577]
[1746438814258,3.40951945,1831.4,1831.3,0.8035]
[1746438814465,3.0,1831.4,1831.3,0.8035]
[1746438814884,3.30696493,1831.4,1831.3,0.8035]
[1746438815026,8.76726852,1831.4,1831.3,0.8035]
[1746438815459,8.76726852,1831.4,1831.3,1.3535]
[1746438815664,0.30696493,1831.4,1831.3,1.3535]
[1746438815840,0.30696493,1831.4,1831.3,2.03492044]
[1746438816383,0.30696493,1831.4,1831.3,1.3535]
[1746438817275,0.71230266,1831.4,1831.3,1.3535]
[1746438818768,0.30696493,1831.4,1831.3,1.3535]
[1746438819485,0.30696493,1831.4,1831.3,7.3635]